fUSD/lending_fUSD_20250607
["ID","MTS","AMOUNT","RATE_DAILY","PERIOD"]
[364866440,1749282681357,-151.0,0.00027871,7]
[364866441,1749282681380,-151.0,0.00027871,7]
[364866442,1749282681390,-202.3884,0.00027871,7]
[364866443,1749282681401,-202.3884,0.00027871,7]
[364866444,1749282681411,-199.862751,0.00027871,7]
[364866445,1749282681420,-199.862751,0.00027871,7]
[364866446,1749282681431,-154.25564,0.00027871,7]
[364866447,1749282681441,-154.25564,0.00027871,7]
[364866448,1749282681451,-151.0,0.00027871,7]
[364866449,1749282681461,-151.0,0.00027871,7]
[364866450,1749282681472,-151.0,0.00027871,7]
[364866451,1749282681483,-151.0,0.00027871,7]
[364866452,1749282681495,-273.709969,0.00027871,7]
[364866453,1749282681505,-151.0,0.00027871,7]
[364866454,1749282681515,-151.0,0.00027871,7]
[364866455,1749282681526,-151.0,0.00027871,7]
[364866456,1749282681536,-1077.542394,0.00027871,7]
[364866457,1749282681546,-1077.542394,0.00027871,7]
[364866458,1749282681557,-4026.4783977,0.00027871,2]
[364866459,1749282681568,-2130.2816772,0.00027871,2]
[364866460,1749282681578,-284171.2163233,0.00027871,2]
[364866461,1749282681588,-151.0,0.0002789,7]
[364866462,1749282681598,-151.0,0.0002789,7]
[364866463,1749282681608,-151.0,0.0002789,7]
[364866464,1749282681618,-151.0,0.0002789,7]
[364866465,1749282681628,-152.668572,0.0002789,7]
[364866466,1749282681638,-151.0,0.0002789,7]
[364866467,1749282681648,-240.033009,0.0002789,7]
[364866468,1749282681660,-151.0,0.0002789,7]
[364866469,1749282681672,-151.0,0.0002789,7]
[364866470,1749282681682,-151.0,0.0002789,7]
[364866471,1749282681693,-162.798157,0.0002789,7]
[364866472,1749282681703,-151.0,0.0002789,7]
[364866473,1749282681714,-151.0,0.0002789,7]
[364866474,1749282681724,-151.0,0.0002789,7]
[364866475,1749282681734,-151.0,0.0002789,7]
[364866476,1749282681744,-336.53621,0.0002789,7]
[364866477,1749282681755,-336.53621,0.0002789,7]
[364866478,1749282681765,-151.0,0.0002789,7]
[364866479,1749282681775,-151.0,0.0002789,7]
[364866480,1749282681786,-151.0,0.0002789,7]
[364866481,1749282681801,-225.218056,0.0002789,7]
[364866482,1749282681811,-151.0,0.0002789,7]
[364866483,1749282681822,-335.472379,0.0002789,7]
[364866484,1749282681832,-151.0,0.0002789,7]
[364866485,1749282681843,-155.516087,0.0002789,7]
[364866486,1749282681854,-151.0,0.0002789,7]
[364866487,1749282681864,-183.691151,0.0002789,7]
[364866488,1749282681879,-171.882811,0.0002789,7]
[364866489,1749282681889,-171.882811,0.0002789,7]
[364866490,1749282681899,-151.0,0.0002789,7]
[364866491,1749282681909,-961.409907,0.0002789,7]
[364866492,1749282681920,-961.409907,0.0002789,7]
[364866493,1749282681931,-151.0,0.0002789,7]
[364866494,1749282681942,-151.0,0.0002789,7]
[364866495,1749282681953,-151.0,0.0002789,7]
[364866496,1749282681964,-151.0,0.0002789,7]
[364866497,1749282681974,-151.0,0.0002789,7]
[364866498,1749282681984,-258.138741,0.0002789,7]
[364866499,1749282681995,-258.138741,0.0002789,7]
[364866500,1749282682006,-151.0,0.0002789,7]
[364866501,1749282682016,-283.028488,0.0002789,7]
[364866502,1749282682027,-151.0,0.0002789,7]
[364866503,1749282682037,-283.028488,0.0002789,7]
[364866504,1749282682047,-308.719033,0.0002789,7]
[364866505,1749282682058,-308.719033,0.0002789,7]
[364866506,1749282682068,-1128.633104,0.0002789,7]
[364866507,1749282682078,-1128.633104,0.0002789,7]
[364866508,1749282682089,-1221.810892,0.0002789,7]
[364866509,1749282682099,-1221.810892,0.0002789,7]
[364866510,1749282682109,-151.0,0.0002789,7]
[364866511,1749282682119,-151.0,0.0002789,7]
[364866512,1749282682129,-151.0,0.0002789,7]
[364866513,1749282682139,-1106.284742,0.0002789,7]
[364866514,1749282682149,-1106.284742,0.0002789,7]
[364866515,1749282682159,-151.0,0.0002789,7]
[364866516,1749282682170,-151.0,0.0002789,7]
[364866517,1749282682179,-480.0,0.0002789,5]
[364866518,1749282682189,-480.0,0.0002789,5]
[364866519,1749282682199,-1715.887585,0.0002789,5]
[364866520,1749282682209,-2102.121321,0.0002789,5]
[364866521,1749282682220,-480.0,0.0002789,5]
[364866522,1749282682230,-480.0,0.0002789,5]
[364866523,1749282682240,-517.93019711,0.0002789,5]
[364866524,1749282682250,-480.0,0.0002789,5]
[364866525,1749282682261,-480.0,0.0002789,5]
[364866526,1749282682271,-480.0,0.0002789,5]
[364866527,1749282682282,-480.0,0.0002789,5]
[364866528,1749282682291,-571.94310867,0.0002789,5]
[364866529,1749282682302,-480.0,0.0002789,5]
[364866530,1749282682312,-382.74147213,0.0002789,5]
[364866531,1749282682322,-480.0,0.0002789,5]
[364866532,1749282682332,-480.0,0.0002789,5]
[364866533,1749282682342,-501.9987913,0.0002789,5]
[364866534,1749282682352,-492.3366481,0.0002789,5]
[364866535,1749282682362,-480.0,0.0002789,5]
[364866536,1749282682372,-480.0,0.0002789,5]
[364866537,1749282682383,-480.0,0.0002789,5]
[364866538,1749282682393,-480.0,0.0002789,5]
[364866539,1749282682403,-480.0,0.0002789,5]
[364866540,1749282682413,-480.0,0.0002789,5]
[364866541,1749282682423,-502.09465456,0.0002789,5]
[364866542,1749282682433,-480.0,0.0002789,5]
[364866543,1749282682443,-480.0,0.0002789,5]
[364866544,1749282682452,-244.94722977,0.0002789,5]
[364866545,1749282682462,-466.56828403,0.0002789,5]
[364866546,1749282682472,-480.0,0.0002789,5]
[364866547,1749282682482,-495.78,0.0002789,5]
[364866548,1749282682492,-480.0,0.0002789,5]
[364866549,1749282682502,-480.0,0.0002789,5]
[364866550,1749282682511,-480.0,0.0002789,5]
[364866551,1749282682522,-480.0,0.0002789,5]
[364866552,1749282682532,-480.0,0.0002789,5]
[364866553,1749282682542,-480.0,0.0002789,5]
[364866554,1749282682552,-480.0,0.0002789,5]
[364866555,1749282682562,-480.0,0.0002789,5]
[364866556,1749282682572,-496.45483035,0.0002789,5]
[364866557,1749282682608,-480.0,0.0002789,5]
[364866558,1749282682626,-480.0,0.0002789,5]
[364866559,1749282682647,-480.0,0.0002789,5]
[364866560,1749282682667,-813.01,0.0002789,5]
[364866561,1749282682689,-487.31677098,0.0002789,5]
[364866562,1749282682708,-480.0,0.0002789,5]
[364866563,1749282682724,-480.0,0.0002789,5]
[364866564,1749282682744,-480.0,0.0002789,5]
[364866565,1749282682764,-480.0,0.0002789,5]
[364866566,1749282682783,-480.0,0.0002789,5]
[364866567,1749282682805,-480.0,0.0002789,5]
[364866568,1749282682823,-480.0,0.0002789,5]
[364866569,1749282682840,-480.0,0.0002789,5]
[364866570,1749282682863,-480.0,0.0002789,5]
[364866571,1749282682889,-480.0,0.0002789,5]
[364866572,1749282682903,-480.0,0.0002789,5]
[364866573,1749282682921,-480.0,0.0002789,5]
[364866574,1749282682938,-480.0,0.0002789,5]
[364866575,1749282682950,-480.0,0.0002789,5]
[364866576,1749282682971,-480.0,0.0002789,5]
[364866577,1749282682988,-480.0,0.0002789,2]
[364866578,1749282683006,-480.0,0.0002789,2]
[364866579,1749282683021,-480.0,0.0002789,5]
[364866580,1749282683037,-577.15,0.0002789,5]
[364866581,1749282683055,-480.0,0.0002789,5]
[364866582,1749282683073,-480.0,0.0002789,5]
[364866583,1749282683090,-480.0,0.0002789,5]
[364866584,1749282683107,-480.0,0.0002789,5]
[364866585,1749282683127,-509.8,0.0002789,5]
[364866586,1749282683143,-480.0,0.0002789,5]
[364866587,1749282683160,-480.0,0.0002789,5]
[364866588,1749282683177,-480.0,0.0002789,5]
[364866589,1749282683194,-480.0,0.0002789,2]
[364866590,1749282683210,-497.82781857,0.0002789,5]
[364866591,1749282683227,-480.0,0.0002789,5]
[364866592,1749282683243,-480.0,0.0002789,5]
[364866593,1749282683261,-480.0,0.0002789,5]
[364866594,1749282683278,-480.0,0.0002789,5]
[364866595,1749282683294,-842.56,0.0002789,5]
[364866596,1749282683310,-480.0,0.0002789,5]
[364866597,1749282683326,-618.47,0.0002789,5]
[364866598,1749282683342,-480.0,0.0002789,5]
[364866599,1749282683358,-480.0,0.0002789,5]
[364866600,1749282683375,-517.29791891,0.0002789,5]
[364866601,1749282683391,-480.0,0.0002789,5]
[364866602,1749282683407,-1163.74,0.0002789,5]
[364866603,1749282683423,-480.0,0.0002789,5]
[364866604,1749282683439,-480.0,0.0002789,5]
[364866605,1749282683454,-480.0,0.0002789,5]
[364866606,1749282683472,-480.0,0.0002789,5]
[364866607,1749282683487,-504.49700168,0.0002789,5]
[364866608,1749282683503,-480.0,0.0002789,5]
[364866609,1749282683519,-480.0,0.0002789,5]
[364866610,1749282683538,-807.84,0.0002789,5]
[364866611,1749282683560,-474.07139219,0.0002789,5]
[364866612,1749282683575,-506.55286826,0.0002789,5]
[364866613,1749282683591,-480.0,0.0002789,5]
[364866614,1749282683607,-480.0,0.0002789,5]
[364866615,1749282683621,-480.0,0.0002789,5]
[364866616,1749282683636,-526.5,0.0002789,5]
[364866617,1749282683652,-480.0,0.0002789,5]
[364866618,1749282683669,-722.49,0.0002789,5]
[364866619,1749282683684,-480.0,0.0002789,5]
[364866620,1749282683701,-480.0,0.0002789,5]
[364866621,1749282683717,-480.0,0.0002789,5]
[364866622,1749282683734,-189.7057062,0.0002789,5]
[364866623,1749282683750,-480.0,0.0002789,5]
[364866624,1749282683766,-480.0,0.0002789,5]
[364866625,1749282683781,-480.0,0.0002789,5]
[364866626,1749282683797,-480.0,0.0002789,5]
[364866627,1749282683812,-480.0,0.0002789,5]
[364866628,1749282683827,-658.07,0.0002789,5]
[364866629,1749282683841,-480.0,0.0002789,5]
[364866630,1749282683856,-548.11,0.0002789,5]
[364866631,1749282683873,-493.32430648,0.0002789,5]
[364866632,1749282683889,-480.0,0.0002789,5]
[364866633,1749282683906,-480.0,0.0002789,5]
[364866634,1749282683922,-480.0,0.0002789,5]
[364866635,1749282683937,-480.0,0.0002789,5]
[364866636,1749282683953,-480.0,0.0002789,5]
[364866637,1749282683968,-1423.16,0.0002789,5]
[364866638,1749282683983,-517.3785128,0.0002789,5]
[364866639,1749282683998,-480.0,0.0002789,5]
[364866640,1749282684014,-480.0,0.0002789,5]
[364866641,1749282684028,-480.0,0.0002789,5]
[364866642,1749282684046,-676.89,0.0002789,5]
[364866643,1749282684068,-1030.91,0.0002789,5]
[364866644,1749282684083,-300.0,0.0002789,5]
[364866645,1749282684099,-480.0,0.0002789,5]
[364866646,1749282684113,-480.0,0.0002789,5]
[364866647,1749282684128,-271.84783535,0.0002789,5]
[364866648,1749282684143,-480.0,0.0002789,5]
[364866649,1749282684159,-903.48,0.0002789,5]
[364866650,1749282684179,-545.14,0.0002789,5]
[364866651,1749282684197,-480.0,0.0002789,5]
[364866652,1749282684215,-580.63,0.0002789,5]
[364866653,1749282684232,-624.11,0.0002789,5]
[364866654,1749282684249,-502.38200868,0.0002789,5]
[364866655,1749282684266,-559.63387992,0.0002789,5]
[364866656,1749282684282,-480.0,0.0002789,5]
[364866657,1749282684298,-480.0,0.0002789,5]
[364866658,1749282684315,-480.0,0.0002789,5]
[364866659,1749282684330,-480.0,0.0002789,5]
[364866660,1749282684345,-480.0,0.0002789,5]
[364866661,1749282684361,-480.0,0.0002789,5]
[364866662,1749282684377,-1137.84,0.0002789,5]
[364866663,1749282684393,-584.58661117,0.0002789,5]
[364866664,1749282684409,-480.0,0.0002789,5]
[364866665,1749282684424,-1026.76,0.0002789,5]
[364866666,1749282684440,-480.0,0.0002789,5]
[364866667,1749282684456,-480.0,0.0002789,5]
[364866668,1749282684472,-480.0,0.0002789,5]
[364866669,1749282684487,-480.0,0.0002789,5]
[364866670,1749282684503,-480.0,0.0002789,5]
[364866671,1749282684520,-1323.94,0.0002789,5]
[364866672,1749282684534,-1037.35,0.0002789,5]
[364866673,1749282684550,-480.0,0.0002789,5]
[364866674,1749282684565,-480.0,0.0002789,5]
[364866675,1749282684587,-480.0,0.0002789,5]
[364866676,1749282684603,-495.75988907,0.0002789,5]
[364866677,1749282684621,-480.0,0.0002789,5]
[364866678,1749282684636,-480.0,0.0002789,5]
[364866679,1749282684650,-480.0,0.0002789,5]
[364866680,1749282684666,-1212.38,0.0002789,5]
[364866681,1749282684681,-480.0,0.0002789,5]
[364866682,1749282684699,-480.0,0.0002789,5]
[364866683,1749282684713,-480.0,0.0002789,5]
[364866684,1749282684729,-480.0,0.0002789,5]
[364866685,1749282684745,-480.0,0.0002789,5]
[364866686,1749282684759,-480.0,0.0002789,5]
[364866687,1749282684776,-480.0,0.0002789,5]
[364866688,1749282684791,-495.55541164,0.0002789,5]
[364866689,1749282684806,-480.0,0.0002789,5]
[364866690,1749282684821,-713.0,0.0002789,5]
[364866691,1749282684837,-811.35,0.0002789,5]
[364866692,1749282684852,-480.0,0.0002789,5]
[364866693,1749282684869,-634.26,0.0002789,5]
[364866694,1749282684889,-1174.57,0.0002789,5]
[364866695,1749282684905,-737.61,0.0002789,5]
[364866696,1749282684922,-1789.64,0.0002789,5]
[364866697,1749282684937,-480.0,0.0002789,5]
[364866698,1749282684953,-480.0,0.0002789,5]
[364866699,1749282684969,-480.0,0.0002789,5]
[364866700,1749282684983,-480.0,0.0002789,5]
[364866701,1749282685014,-514.25464342,0.0002789,5]
[364866702,1749282685036,-480.0,0.0002789,5]
[364866703,1749282685057,-480.0,0.0002789,5]
[364866704,1749282685076,-480.0,0.0002789,5]
[364866705,1749282685094,-480.0,0.0002789,5]
[364866706,1749282685113,-480.0,0.0002789,5]
[364866707,1749282685131,-835.68,0.0002789,5]
[364866708,1749282685565,-480.0,0.0002789,5]
[364866709,1749282685612,-480.0,0.0002789,5]
[364866710,1749282685626,-480.0,0.0002789,5]
[364866711,1749282685636,-480.0,0.0002789,5]
[364866712,1749282685645,-480.0,0.0002789,5]
[364866713,1749282685656,-480.0,0.0002789,5]
[364866714,1749282685665,-611.81,0.0002789,5]
[364866715,1749282685675,-1115.25,0.0002789,5]
[364866716,1749282685685,-984.78,0.0002789,5]
[364866717,1749282685694,-480.0,0.0002789,5]
[364866718,1749282685709,-592.62,0.0002789,5]
[364866719,1749282685718,-480.0,0.0002789,5]
[364866720,1749282685729,-480.0,0.0002789,5]
[364866721,1749282685738,-480.0,0.0002789,5]
[364866722,1749282685747,-480.0,0.0002789,5]
[364866723,1749282685757,-502.79479888,0.0002789,5]
[364866724,1749282685767,-480.0,0.0002789,5]
[364866725,1749282685777,-480.0,0.0002789,5]
[364866726,1749282685786,-2016.63,0.0002789,5]
[364866727,1749282685796,-480.0,0.0002789,5]
[364866728,1749282685806,-480.0,0.0002789,5]
[364866729,1749282685816,-480.0,0.0002789,5]
[364866730,1749282685825,-1504.99,0.0002789,5]
[364866731,1749282685835,-480.0,0.0002789,5]
[364866732,1749282685845,-652.14,0.0002789,5]
[364866733,1749282685855,-480.0,0.0002789,5]
[364866734,1749282685865,-480.0,0.0002789,5]
[364866735,1749282685880,-601.8,0.0002789,5]
[364866736,1749282685890,-1444.88,0.0002789,5]
[364866737,1749282685900,-488.65139863,0.0002789,5]
[364866738,1749282685910,-480.0,0.0002789,5]
[364866739,1749282685920,-787.2,0.0002789,5]
[364866740,1749282685930,-480.0,0.0002789,5]
[364866741,1749282685940,-658.72,0.0002789,5]
[364866742,1749282685950,-480.0,0.0002789,5]
[364866743,1749282685961,-853.62,0.0002789,5]
[364866744,1749282685971,-879.54,0.0002789,5]
[364866745,1749282685980,-480.0,0.0002789,5]
[364866746,1749282685990,-753.65,0.0002789,5]
[364866747,1749282686000,-990.87,0.0002789,5]
[364866748,1749282686010,-463.54139938,0.0002789,5]
[364866749,1749282686021,-480.0,0.0002789,5]
[364866750,1749282686031,-1000.0,0.0002789,5]
[364866751,1749282686040,-521.652639,0.0002789,5]
[364866752,1749282686051,-480.0,0.0002789,5]
[364866753,1749282686061,-850.33,0.0002789,5]
[364866754,1749282686071,-480.0,0.0002789,5]
[364866755,1749282686080,-480.0,0.0002789,5]
[364866756,1749282686091,-480.0,0.0002789,5]
[364866757,1749282686101,-480.0,0.0002789,5]
[364866758,1749282686111,-494.24,0.0002789,5]
[364866759,1749282686121,-500.72939697,0.0002789,5]
[364866760,1749282686132,-480.0,0.0002789,5]
[364866761,1749282686142,-614.65,0.0002789,5]
[364866762,1749282686157,-768.49,0.0002789,5]
[364866763,1749282686167,-480.0,0.0002789,5]
[364866764,1749282686178,-480.0,0.0002789,5]
[364866765,1749282686188,-620.08,0.0002789,5]
[364866766,1749282686198,-702.18,0.0002789,5]
[364866767,1749282686208,-480.0,0.0002789,5]
[364866768,1749282686219,-1066.78,0.0002789,5]
[364866769,1749282686229,-480.0,0.0002789,5]
[364866770,1749282686238,-715.95,0.0002789,5]
[364866771,1749282686249,-480.0,0.0002789,5]
[364866772,1749282686259,-480.0,0.0002789,5]
[364866773,1749282686269,-480.0,0.0002789,5]
[364866774,1749282686280,-480.0,0.0002789,5]
[364866775,1749282686291,-656.54,0.0002789,5]
[364866776,1749282686302,-871.81,0.0002789,5]
[364866777,1749282686313,-674.63,0.0002789,5]
[364866778,1749282686323,-607.29,0.0002789,5]
[364866779,1749282686334,-480.0,0.0002789,5]
[364866780,1749282686344,-647.25,0.0002789,5]
[364866781,1749282686354,-480.0,0.0002789,5]
[364866782,1749282686364,-480.0,0.0002789,5]
[364866783,1749282686374,-480.0,0.0002789,5]
[364866784,1749282686384,-867.98,0.0002789,5]
[364866785,1749282686394,-1182.54,0.0002789,5]
[364866786,1749282686404,-480.0,0.0002789,5]
[364866787,1749282686413,-496.4309924,0.0002789,5]
[364866788,1749282686424,-1150.03,0.0002789,5]
[364866789,1749282686434,-1505.03,0.0002789,5]
[364866790,1749282686444,-1473.87,0.0002789,5]
[364866791,1749282686455,-2181.17,0.0002789,5]
[364866792,1749282686466,-2996.31,0.0002789,5]
[364866793,1749282686476,-930.43,0.0002789,5]
[364866794,1749282686485,-480.0,0.0002789,5]
[364866795,1749282686495,-7442.14,0.0002789,5]
[364866796,1749282686505,-480.0,0.0002789,5]
[364866797,1749282686515,-5891.72,0.0002789,5]
[364866798,1749282686524,-4307.55,0.0002789,5]
[364866799,1749282686535,-956.19,0.0002789,5]
[364866800,1749282686544,-480.0,0.0002789,5]
[364866801,1749282686554,-798.07,0.0002789,5]
[364866802,1749282686564,-1206.45,0.0002789,5]
[364866803,1749282686574,-480.0,0.0002789,5]
[364866804,1749282686584,-480.0,0.0002789,5]
[364866805,1749282686594,-480.0,0.0002789,5]
[364866806,1749282686618,-1267.21,0.0002789,5]
[364866807,1749282686628,-480.0,0.0002789,5]
[364866808,1749282686639,-5617.32,0.0002789,5]
[364866809,1749282686649,-798.33,0.0002789,5]
[364866810,1749282686660,-480.0,0.0002789,5]
[364866811,1749282686671,-480.0,0.0002789,5]
[364866812,1749282686681,-1111.08,0.0002789,5]
[364866813,1749282686692,-480.0,0.0002789,5]
[364866814,1749282686702,-480.0,0.0002789,5]
[364866815,1749282686710,-1613.36,0.0002789,5]
[364866816,1749282686719,-480.0,0.0002789,5]
[364866817,1749282686728,-480.0,0.0002789,5]
[364866818,1749282686737,-665.13,0.0002789,5]
[364866819,1749282686746,-498.03321901,0.0002789,5]
[364866820,1749282686755,-984.27,0.0002789,5]
[364866821,1749282686766,-480.0,0.0002789,5]
[364866822,1749282686776,-10955.06,0.0002789,5]
[364866823,1749282686787,-8194.39,0.0002789,5]
[364866824,1749282686798,-480.0,0.0002789,5]
[364866825,1749282686811,-835.03,0.0002789,5]
[364866826,1749282686821,-3592.23,0.0002789,5]
[364866827,1749282686832,-675.89,0.0002789,5]
[364866828,1749282686843,-480.0,0.0002789,5]
[364866829,1749282686854,-1342.98,0.0002789,5]
[364866830,1749282686864,-3803.92,0.0002789,5]
[364866831,1749282686878,-2538.94,0.0002789,5]
[364866832,1749282686888,-1427.01,0.0002789,5]
[364866833,1749282686897,-1719.89,0.0002789,5]
[364866834,1749282686907,-480.0,0.0002789,5]
[364866835,1749282686918,-1821.11,0.0002789,5]
[364866836,1749282686930,-480.0,0.0002789,5]
[364866837,1749282686940,-1325.93,0.0002789,5]
[364866838,1749282686952,-480.0,0.0002789,5]
[364866839,1749282686963,-1072.0,0.0002789,5]
[364866840,1749282686974,-1000.0,0.0002789,5]
[364866841,1749282686984,-1892.42,0.0002789,5]
[364866842,1749282686994,-63362.5,0.0002789,5]
[364866843,1749282687005,-1666.49,0.0002789,5]
[364866844,1749282687016,-769.25,0.0002789,5]
[364866845,1749282687026,-480.0,0.0002789,5]
[364866846,1749282687035,-622.41,0.0002789,5]
[364866847,1749282687052,-480.0,0.0002789,5]
[364866848,1749282687063,-480.0,0.0002789,5]
[364866849,1749282687074,-802.83,0.0002789,5]
[364866850,1749282687085,-3297.59,0.0002789,5]
[364866851,1749282687095,-1298.4,0.0002789,5]
[364866852,1749282687106,-1257.45,0.0002789,5]
[364866853,1749282687118,-619.63,0.0002789,5]
[364866854,1749282687128,-480.0,0.0002789,5]
[364866855,1749282687139,-2010.42,0.0002789,5]
[364866856,1749282687150,-1795.02,0.0002789,5]
[364866857,1749282687161,-2147.53,0.0002789,2]
[364866858,1749282687172,-480.0,0.0002789,5]
[364866859,1749282687182,-2644.51,0.0002789,5]
[364866860,1749282687192,-1671.91,0.0002789,5]
[364866861,1749282687203,-480.0,0.0002789,5]
[364866862,1749282687213,-480.0,0.0002789,5]
[364866863,1749282687225,-2770.74,0.0002789,5]
[364866864,1749282687235,-3633.12,0.0002789,5]
[364866865,1749282687246,-480.0,0.0002789,5]
[364866866,1749282687257,-480.0,0.0002789,5]
[364866867,1749282687267,-6110.32,0.0002789,5]
[364866868,1749282687278,-1513.66,0.0002789,5]
[364866869,1749282687288,-480.0,0.0002789,5]
[364866870,1749282687298,-1788.9,0.0002789,5]
[364866871,1749282687309,-814.18,0.0002789,5]
[364866872,1749282687319,-480.0,0.0002789,5]
[364866873,1749282687331,-11876.34,0.0002789,5]
[364866874,1749282687342,-959.52,0.0002789,5]
[364866875,1749282687352,-2522.98,0.0002789,5]
[364866876,1749282687363,-480.0,0.0002789,5]
[364866877,1749282687374,-1093.12,0.0002789,5]
[364866878,1749282687384,-480.0,0.0002789,5]
[364866879,1749282687394,-1813.84,0.0002789,5]
[364866880,1749282687405,-481.61,0.0002789,5]
[364866881,1749282687416,-480.0,0.0002789,5]
[364866882,1749282687426,-501.6745686,0.0002789,5]
[364866883,1749282687438,-6018.65,0.0002789,5]
[364866884,1749282687450,-1581.96,0.0002789,5]
[364866885,1749282687461,-480.0,0.0002789,5]
[364866886,1749282687472,-855.47,0.0002789,5]
[364866887,1749282687482,-480.0,0.0002789,5]
[364866888,1749282687493,-480.0,0.0002789,5]
[364866889,1749282687503,-480.0,0.0002789,5]
[364866890,1749282687514,-480.0,0.0002789,5]
[364866891,1749282687525,-5571.7,0.0002789,5]
[364866892,1749282687535,-1003.3,0.0002789,5]
[364866893,1749282687546,-1086.55,0.0002789,5]
[364866894,1749282687556,-1345.91,0.0002789,5]
[364866895,1749282687568,-1327.04,0.0002789,5]
[364866896,1749282687579,-1675.33,0.0002789,5]
[364866897,1749282687590,-2008.91,0.0002789,5]
[364866898,1749282687601,-480.0,0.0002789,5]
[364866899,1749282687611,-480.0,0.0002789,5]
[364866900,1749282687621,-480.0,0.0002789,5]
[364866901,1749282687631,-734.71,0.0002789,5]
[364866902,1749282687642,-1529.93,0.0002789,5]
[364866903,1749282687653,-480.0,0.0002789,5]
[364866904,1749282687664,-480.0,0.0002789,5]
[364866905,1749282687675,-480.0,0.0002789,5]
[364866906,1749282687686,-596.66,0.0002789,5]
[364866907,1749282687698,-480.0,0.0002789,5]
[364866908,1749282687708,-1453.1,0.0002789,5]
[364866909,1749282687719,-3865.55,0.0002789,5]
[364866910,1749282687730,-3264.83,0.0002789,5]
[364866911,1749282687745,-967.54,0.0002789,5]
[364866912,1749282687755,-480.0,0.0002789,5]
[364866913,1749282687766,-514.06484279,0.0002789,5]
[364866914,1749282687776,-480.0,0.0002789,5]
[364866915,1749282687786,-871.56,0.0002789,5]
[364866916,1749282687797,-1458.57,0.0002789,5]
[364866917,1749282687807,-749.45,0.0002789,5]
[364866918,1749282687818,-480.0,0.0002789,5]
[364866919,1749282687828,-480.0,0.0002789,5]
[364866920,1749282687840,-915.39,0.0002789,5]
[364866921,1749282687851,-480.0,0.0002789,5]
[364866922,1749282687863,-4023.49,0.0002789,5]
[364866923,1749282687876,-1170.49,0.0002789,5]
[364866924,1749282687888,-480.0,0.0002789,5]
[364866925,1749282687898,-480.0,0.0002789,5]
[364866926,1749282687909,-742.56,0.0002789,5]
[364866927,1749282687920,-594.14,0.0002789,5]
[364866928,1749282687932,-1731.59,0.0002789,5]
[364866929,1749282687942,-480.0,0.0002789,5]
[364866930,1749282687955,-480.0,0.0002789,5]
[364866931,1749282687967,-480.0,0.0002789,5]
[364866932,1749282687977,-1143.16,0.0002789,5]
[364866933,1749282687987,-480.0,0.0002789,5]
[364866934,1749282687999,-2029.78,0.0002789,5]
[364866935,1749282688010,-2000.65,0.0002789,5]
[364866936,1749282688020,-683.94,0.0002789,5]
[364866937,1749282688030,-480.0,0.0002789,5]
[364866938,1749282688041,-1386.31,0.0002789,5]
[364866939,1749282688052,-485.39,0.0002789,5]